bitfinex/quotes_ETHUSD_20240716
["timestamp","ask_amount","ask_price","bid_price","bid_amount"]
[1721098854505,3.67687292,3473.5,3472.6,2.87967]
[1721098854506,3.67687292,3473.5,3472.7,2.87953]
[1721098854707,6.55581292,3473.5,3472.8,3.0]
[1721098854903,1.20257292,3473.4,3472.6,2.87967]
[1721098855104,1.20257292,3473.4,3472.7,3.0]
[1721098855333,1.20257292,3473.4,3472.7,5.87958]
[1721098855538,7.64989378,3473.5,3472.7,5.87958]
[1721098855745,1.20257292,3473.4,3472.7,3.0]
[1721098857508,1.20257292,3473.4,3472.2,2.2534]
[1721098857509,1.20257292,3473.2,3472.1,3.0]
[1721098857706,5.43816928,3473.4,3472.1,2.88008]
[1721098857707,3.65127292,3473.1,3472.1,2.88008]
[1721098857904,1.20257292,3473.0,3472.4,2.87979]
[1721098858317,1.20257292,3473.0,3472.5,2.87975]
[1721098858560,2.4487,3473.1,3472.5,2.87975]
[1721098859447,2.4487,3473.1,3472.6,2.87968]
[1721098861148,2.4487,3473.1,3472.4,2.8798]
[1721098861360,1.20257292,3473.0,3472.1,2.88008]
[1721098861541,0.90361526,3472.9,3472.4,2.87983]
[1721098861881,0.90361526,3472.9,3472.5,2.87976]
[1721098862017,0.90361526,3473.1,3472.6,0.575968]
[1721098862214,0.90361526,3473.2,3472.7,2.8796]
[1721098862554,0.90361526,3473.5,3473.2,2.87918]
[1721098863146,0.90361526,3473.4,3473.0,2.87935]
[1721098863356,0.90361526,3473.3,3473.0,2.87935]
[1721098863620,0.90361526,3473.3,3473.1,2.8792]
[1721098863853,0.90361526,3473.4,3473.1,5.7584]
[1721098864055,0.90361526,3473.5,3473.1,5.7584]
[1721098864296,0.90361526,3473.5,3473.2,2.87918]
[1721098864461,0.90361526,3473.5,3473.3,2.87904]
[1721098864659,0.90361526,3473.5,3473.4,2.87902]
[1721098864971,0.90361526,3473.6,3473.2,3.454988]
[1721098865268,0.90361526,3473.5,3473.2,2.87915]
[1721098865479,0.90361526,3473.4,3473.2,2.87915]
[1721098865833,0.90361526,3473.3,3472.9,2.87942]
[1721098866038,0.90361526,3473.2,3472.9,2.87942]
[1721098866240,0.90361526,3473.2,3473.0,2.87931]
[1721098866974,0.90361526,3473.1,3472.7,2.87959]
[1721098867181,0.90361526,3473.0,3472.7,2.87959]
[1721098868463,3.29591526,3473.2,3472.8,2.8795]
[1721098868777,0.90361526,3473.3,3472.8,2.8795]
[1721098868948,0.90361526,3473.4,3472.8,2.8795]
[1721098869153,0.90361526,3473.3,3472.8,2.8795]
[1721098869338,0.90361526,3473.3,3472.8,3.4842139]
[1721098869770,0.90361526,3473.2,3472.4,2.87983]
[1721098869984,3.25751526,3472.9,3472.3,2.87991]
[1721098870149,0.90361526,3472.8,3472.4,5.87982]
[1721098870490,0.90361526,3472.8,3472.4,2.87982]
[1721098870673,0.90361526,3472.7,3472.4,2.87982]
[1721098871866,0.90361526,3472.5,3471.5,2.3887]
[1721098872159,0.90361526,3472.5,3471.6,0.526931]
[1721098872359,0.90361526,3472.5,3471.6,3.526931]
[1721098873289,0.90361526,3472.5,3472.1,2.88008]
[1721098873886,0.90361526,3472.5,3472.1,2.88003]
[1721098874153,1.20257292,3472.7,3472.1,3.168033]
[1721098874154,0.90361526,3472.7,3472.1,3.168033]
[1721098874377,0.90361526,3472.7,3472.2,2.87999]
[1721098874690,0.90361526,3472.7,3472.1,3.168033]
[1721098874984,0.90361526,3472.6,3472.1,3.168033]
[1721098875170,0.90361526,3472.6,3472.1,2.88003]
[1721098875171,0.90361526,3472.5,3472.1,2.88003]
[1721098875896,0.89641594,3472.5,3472.1,2.88003]
[1721098876386,1.20257292,3472.6,3472.0,2.88015]
[1721098876552,1.20257292,3472.5,3472.0,2.88015]
[1721098877035,1.20257292,3472.6,3472.0,2.88015]
[1721098877608,1.20257292,3472.6,3472.1,2.88008]
[1721098877905,3.55647292,3472.9,3472.2,2.88001]
[1721098878879,1.20257292,3472.8,3472.2,2.88001]
[1721098880390,1.20257292,3472.7,3472.2,2.88001]
[1721098880575,1.20257292,3472.7,3471.7,2.88035]
[1721098880576,2.2929,3472.5,3471.7,2.88035]
[1721098880776,2.2929,3472.5,3471.6,6.407361]
[1721098880777,1.20257292,3472.4,3471.6,6.407361]
[1721098881410,1.20257292,3472.4,3471.6,2.88043]
[1721098882124,1.20257292,3472.3,3471.6,2.88043]
[1721098882532,1.20257292,3472.3,3471.4,2.88067]
[1721098882829,4.08276292,3472.0,3471.1,2.88085]
[1721098883027,2.3553,3471.8,3471.1,2.88085]
[1721098884707,2.88061,3471.5,3470.1,2.88175]
[1721098884914,0.90256229,3471.5,3470.8,2.88117]
[1721098885641,0.90214652,3471.5,3470.8,2.88117]
[1721098886196,3.78267652,3471.6,3470.8,2.88117]
[1721098886431,5.31459625,3471.6,3470.8,2.88117]
[1721098886633,2.43406625,3471.6,3470.3,3.0]
[1721098886850,2.43406625,3471.6,3469.8,2.4146]
[1721098886851,6.06873652,3471.4,3470.4,2.8815]
[1721098887151,2.88102,3471.0,3470.2,2.88167]
[1721098887435,0.90214652,3471.1,3470.0,2.88182]
[1721098887436,5.167,3470.9,3470.0,2.88182]
[1721098887634,6.06914652,3470.9,3470.0,2.83182]
[1721098887838,5.167,3470.9,3470.0,2.83182]
[1721098888133,0.97120086,3470.8,3470.1,2.88171]
[1721098888698,0.97120086,3470.8,3470.2,2.88167]
[1721098889506,2.2859,3470.9,3470.2,2.88167]
[1721098891437,2.2859,3470.9,3470.4,2.88148]
[1721098892157,2.2859,3470.9,3470.3,2.88158]
[1721098892322,2.2859,3470.9,3470.4,2.8815]
[1721098892847,2.2859,3470.9,3470.5,2.88142]
[1721098893259,2.51449,3470.9,3470.5,2.88142]
[1721098894954,2.51449,3470.9,3470.3,2.88159]
[1721098895249,2.51449,3470.9,3470.1,2.88174]
[1721098895465,2.51449,3470.9,3470.0,2.88183]
[1721098895637,5.39559,3470.9,3470.0,2.88183]
[1721098895841,1.071653,3470.8,3470.0,2.88183]
[1721098896853,1.071653,3470.8,3470.1,2.88174]
[1721098897850,2.54665669,3470.9,3470.3,2.88158]
[1721098898844,2.31806669,3470.9,3470.4,2.88149]
[1721098900746,2.31806669,3470.9,3470.7,2.88125]
[1721098902976,0.03216669,3470.9,3470.8,2.88118]
[1721098903140,7.32,3471.3,3470.8,2.88118]
[1721098903487,7.32,3471.3,3471.0,2.88098]
[1721098903655,7.32,3471.3,3471.2,2.88084]
[1721098904382,7.32,3471.3,3471.2,5.76168]
[1721098905767,3.20412056,3471.6,3471.5,2.88059]
[1721098906498,3.20412056,3471.6,3471.3,2.88073]
[1721098908088,3.20412056,3471.6,3471.1,2.88092]
[1721098908457,3.20412056,3471.6,3470.9,2.88108]
[1721098908656,3.20412056,3471.6,3471.1,2.88086]
[1721098909050,3.20412056,3471.6,3470.9,2.88108]
[1721098909287,2.3331,3471.5,3470.7,2.88125]
[1721098909483,2.3331,3471.5,3470.7,2.8812]
[1721098909871,2.3331,3471.5,3470.8,2.88115]
[1721098910588,2.3331,3471.5,3470.7,2.8812]
[1721098910806,2.3331,3471.5,3470.8,2.88115]
[1721098911289,2.3331,3471.5,3470.9,2.88108]
[1721098912630,3.20412056,3471.6,3471.3,2.88076]
[1721098912908,3.20412056,3471.6,3471.5,2.88059]
[1721098916127,7.32,3472.0,3471.5,2.88059]
[1721098916333,7.32,3472.0,3471.8,2.88035]
[1721098918899,7.32,3472.0,3471.6,2.88051]
[1721098919102,8.2903,3472.0,3471.4,2.88066]
[1721098919654,2.383,3471.9,3471.4,2.88066]
[1721098920150,2.383,3471.9,3471.3,2.88075]
[1721098920880,2.383,3471.9,3470.6,2.88127]
[1721098921163,2.383,3471.9,3471.3,2.88068]
[1721098921330,1.27782259,3471.8,3471.4,2.88065]
[1721098921654,3.2851111,3471.9,3471.0,2.88096]
[1721098921960,2.383,3471.9,3471.0,2.88096]
[1721098922319,2.383,3471.9,3471.7,2.88041]
[1721098923617,2.383,3471.9,3471.3,2.88075]
[1721098923819,2.383,3471.9,3471.6,2.88049]
[1721098924126,3.56379259,3471.9,3471.6,2.88049]
[1721098924329,3.56379259,3471.9,3471.7,2.88041]
[1721098924729,4.46590369,3471.9,3471.7,2.88041]
[1721098926544,0.9021111,3471.8,3471.7,2.88041]
[1721098926763,3.2851111,3471.9,3471.7,2.88041]
[1721098927443,0.9021111,3471.8,3471.7,2.88041]
[1721098927615,0.9021111,3471.8,3471.4,2.88067]
[1721098927616,0.9021111,3471.8,3471.5,2.88057]
[1721098928045,0.9021111,3471.8,3471.4,2.88067]
[1721098928321,3.2851111,3471.9,3471.4,2.88067]
[1721098929322,0.9021111,3471.8,3471.7,2.88043]
[1721098929538,0.9021111,3471.8,3471.5,2.88059]
[1721098929733,0.9021111,3471.8,3471.6,2.8805]
[1721098930158,0.9021111,3471.7,3471.6,2.8805]
[1721098930456,0.9021111,3471.8,3471.6,2.8805]
[1721098930652,1.2028148,3471.9,3471.6,2.8805]
[1721098930653,0.9021111,3471.7,3471.6,2.8805]
[1721098930859,0.9021111,3471.8,3471.6,2.8805]
[1721098931031,0.9021111,3471.7,3471.6,2.8805]
[1721098931231,0.9021111,3471.8,3471.6,2.8805]
[1721098932028,0.9021111,3471.7,3471.6,2.8805]
[1721098932944,0.9021111,3471.8,3471.7,2.88043]
[1721098933159,0.9021111,3471.9,3471.7,2.88043]
[1721098933364,0.9021111,3472.0,3471.9,5.76052]
[1721098933585,3.21,3472.5,3471.9,2.4496]
[1721098933783,0.9021111,3472.8,3472.4,2.87985]
[1721098933998,0.9021111,3472.7,3472.4,2.87985]
[1721098934483,0.9021111,3472.7,3472.2,2.87998]
[1721098934484,0.9021111,3472.9,3472.8,2.87952]
[1721098935348,1.26324156,3472.9,3471.9,2.4496]
[1721098935570,1.26324156,3472.9,3471.7,2.88035]
[1721098935571,1.26324156,3472.9,3472.4,2.87984]
[1721098935774,2.3877,3472.8,3472.4,2.87984]
[1721098935968,3.2898111,3472.8,3472.4,2.87984]
[1721098936364,0.9021111,3472.7,3472.4,2.87984]
[1721098936692,0.48537564,3472.7,3472.4,2.87984]
[1721098937689,1.38748674,3472.7,3472.2,2.88001]
[1721098938055,1.38748674,3472.7,3472.3,2.87992]
[1721098938671,0.48537564,3472.7,3472.3,2.87992]
[1721098939452,1.38748674,3472.7,3472.3,2.87992]
[1721098939966,0.5339132,3472.6,3472.1,2.88005]
[1721098940368,0.5339132,3472.6,3471.7,2.88035]
[1721098940685,0.90297593,3472.5,3471.9,2.8802]
[1721098940886,0.90297593,3472.5,3472.1,2.88004]
[1721098941297,0.90297593,3472.4,3472.1,2.88004]
[1721098942301,0.90297593,3472.4,3471.9,2.88026]
[1721098942302,2.3877,3472.3,3471.9,2.88026]
[1721098942506,3.29067593,3472.3,3471.4,3.0]
[1721098942802,3.29067593,3472.3,3472.1,2.88007]
[1721098943175,0.90297593,3472.4,3472.2,2.88001]
[1721098943498,0.90297593,3472.5,3472.2,2.88001]
[1721098943872,0.90297593,3472.4,3472.2,2.88001]
[1721098944075,0.90297593,3472.5,3472.2,2.88001]
[1721098944470,0.90297593,3472.4,3472.2,2.88001]
[1721098944786,0.90297593,3472.3,3472.2,2.88001]
[1721098945605,0.90297593,3472.5,3472.2,2.88001]
[1721098946203,0.90297593,3472.5,3472.4,2.87985]
[1721098946506,1.2039679,3472.6,3472.4,2.87985]
[1721098947000,0.90412371,3472.5,3472.4,2.87985]
[1721098947172,1.2039679,3472.6,3472.4,2.87985]
[1721098948110,0.90440298,3472.6,3472.5,2.87976]
[1721098948271,1.2039679,3472.7,3472.5,2.87976]
[1721098948472,1.2039679,3472.6,3472.5,2.87976]
[1721098948698,2.38337026,3472.7,3472.2,2.87994]
[1721098948976,2.4888,3472.3,3472.0,2.88018]
[1721098949190,0.90451239,3472.1,3472.0,2.88018]
[1721098949566,1.20590115,3472.3,3472.2,2.88001]
[1721098949770,3.3462426,3472.7,3472.2,2.88001]
[1721098949771,1.20590115,3472.4,3472.2,2.88001]
[1721098950797,0.90445305,3472.3,3472.2,2.88001]
[1721098951484,0.90445305,3472.4,3472.3,2.87993]
[1721098951686,0.90451934,3472.4,3472.3,2.87993]
[1721098953624,0.90451934,3472.4,3472.0,2.88013]
[1721098953772,0.9044198,3472.2,3472.0,2.88013]
[1721098954174,0.9044198,3472.2,3471.9,2.88019]
[1721098955506,0.9044198,3472.1,3471.9,2.88019]
[1721098955720,0.45801205,3472.4,3471.7,2.88041]
[1721098955721,3.2452198,3472.0,3471.7,2.88041]
[1721098955892,0.90462446,3471.8,3471.7,2.88041]
[1721098956116,0.90462446,3471.8,3470.7,2.4118]
[1721098956117,0.90462446,3471.8,3471.3,2.88069]
[1721098956323,0.90462446,3471.6,3471.3,2.88069]
[1721098958324,0.90462446,3471.5,3471.3,2.88069]
[1721098959315,0.90462446,3471.5,3471.4,2.88068]
[1721098960351,0.90462446,3471.6,3471.4,2.88068]
[1721098960527,0.90462446,3471.6,3471.5,5.76118]
[1721098960856,0.90462446,3471.7,3471.6,2.88051]
[1721098961012,0.90462446,3471.7,3471.5,2.88059]
[1721098961013,1.5084927,3471.9,3471.7,2.88043]
[1721098961211,1.20690148,3471.8,3471.7,2.88043]
[1721098961523,1.5084927,3471.9,3471.7,2.88043]
[1721098961725,1.20694538,3471.8,3471.7,2.88043]
[1721098962550,1.20694538,3471.8,3471.5,2.88059]
[1721098962707,0.90542174,3471.6,3471.5,2.88059]
[1721098966460,1.20722899,3471.7,3471.3,2.88075]
[1721098966658,1.20714264,3471.4,3470.9,2.88108]
[1721098966863,0.90535554,3471.2,3470.9,2.88108]
[1721098967029,0.90535554,3471.1,3470.9,2.88108]
[1721098967442,0.90535554,3471.1,3470.3,2.88155]
[1721098967679,1.5091863,3471.4,3470.4,2.8815]
[1721098967680,0.90535554,3470.7,3470.4,2.8815]
[1721098967837,0.90535554,3470.7,3470.2,2.88163]
[1721098968045,0.90535554,3470.6,3470.0,2.88181]
[1721098968432,0.90535554,3470.6,3469.9,2.88191]
[1721098968633,0.90535554,3470.6,3470.2,2.88167]
[1721098969867,0.90535554,3470.7,3470.4,2.8815]
[1721098970871,0.90535554,3470.7,3470.2,2.88164]
[1721098971383,1.57489817,3470.8,3470.2,2.88164]
[1721098971876,0.90535554,3470.7,3470.1,2.88175]
[1721098972081,0.27820408,3470.6,3470.1,2.88175]
[1721098972878,0.27820408,3470.6,3470.2,2.88166]
[1721098973068,0.90535554,3470.7,3470.2,2.88166]
[1721098975592,0.90535554,3470.7,3469.7,2.88208]
[1721098975759,0.90535554,3470.7,3469.8,3.0]
[1721098976476,0.90535554,3470.7,3470.4,2.8815]
[1721098976981,0.90535554,3470.7,3470.6,2.88134]
[1721098979487,0.90535554,3470.7,3470.3,2.88154]
[1721098979803,1.34712536,3470.7,3470.3,2.88154]
[1721098981066,1.34712536,3470.7,3470.4,2.88148]
[1721098981571,0.90535554,3470.7,3470.4,2.88148]
[1721098985402,0.90535554,3470.7,3470.2,2.88161]
[1721098985895,2.321,3470.6,3470.0,2.8818]
[1721098987391,2.321,3470.6,3470.1,2.88173]
[1721098987763,2.321,3470.6,3470.2,2.88165]
[1721098988406,2.841211,3470.6,3470.2,2.88165]
[1721098989310,2.841211,3470.6,3470.1,2.88175]
[1721098990707,3.74273599,3470.6,3469.9,2.88189]
[1721098991061,3.74273599,3470.6,3469.7,2.88208]
[1721098991062,2.841211,3470.6,3469.7,2.88208]
[1721098991288,1.47361864,3470.5,3469.8,2.882]
[1721098991497,2.4238,3470.3,3468.7,2.4806]
[1721098991709,2.4238,3470.1,3469.3,2.88236]
[1721098992013,2.05422249,3470.0,3469.3,2.88236]
[1721098992178,4.93610249,3470.0,3469.1,2.88257]
[1721098992367,2.4238,3469.9,3469.1,2.88257]
[1721098992569,2.4238,3469.9,3469.2,2.8825]
[1721098993077,2.4238,3469.4,3468.4,2.88311]
[1721098993274,0.530612,3469.3,3468.5,2.88307]
[1721098994203,0.530612,3469.3,3468.3,2.88317]
[1721098994204,2.4238,3469.2,3468.3,2.88317]
[1721098994736,2.8826,3469.1,3468.3,2.88317]
[1721098995327,5.30631,3469.2,3468.4,2.88316]
[1721098996334,2.8826,3469.1,3468.2,2.8833]
[1721098996491,0.5837012,3469.0,3468.2,2.8833]
[1721098996886,0.5837012,3469.0,3468.3,2.88324]
[1721098998040,0.5837012,3469.0,3467.9,2.88358]
[1721098998041,2.4238,3468.9,3467.9,2.88358]
[1721098998393,2.4238,3468.9,3468.0,2.88348]
[1721098998592,5.30656,3468.9,3468.0,2.88348]
[1721098998892,1.12129512,3468.8,3468.1,2.88342]
[1721098999089,1.12129512,3468.8,3468.2,2.88333]
[1721098999495,2.4238,3468.9,3468.2,2.88333]
[1721098999942,5.30656,3468.9,3468.0,2.88346]
[1721099000594,5.30656,3468.9,3468.1,2.88338]
[1721099000893,2.4238,3468.9,3468.4,2.88316]
[1721099002540,2.4238,3468.9,3468.5,2.88307]
[1721099003226,2.4238,3468.9,3468.7,2.88292]
[1721099003406,2.4238,3468.9,3468.8,2.88284]
[1721099003602,2.66618,3468.9,3467.7,2.4806]
[1721099003809,2.2649,3468.7,3467.9,2.8835]
[1721099004055,0.03223814,3468.6,3468.1,2.88341]
[1721099004345,0.03223814,3468.6,3468.1,2.78341]
[1721099005308,0.03223814,3468.6,3468.0,2.88349]
[1721099005501,0.51799881,3468.5,3468.0,2.88349]
[1721099005920,0.55033247,3468.5,3468.0,2.88349]
[1721099007342,0.55033247,3468.5,3468.1,2.88341]
[1721099007509,0.03233366,3468.5,3468.1,2.88341]
[1721099013033,0.03233366,3468.5,3468.1,2.88335]
[1721099013928,0.03233366,3468.5,3468.2,2.88333]
[1721099014171,0.03233366,3468.5,3468.3,2.88325]
[1721099014375,0.03233366,3468.5,3468.4,2.88317]
[1721099015367,0.03233366,3468.5,3467.7,2.8837]
[1721099015760,0.03233366,3468.5,3468.2,2.88328]
[1721099016180,0.26205703,3468.5,3468.2,2.88328]
[1721099017837,0.26205703,3468.5,3467.9,2.88358]
[1721099018185,0.26205703,3468.5,3468.2,2.88331]
[1721099019277,0.26205703,3468.5,3468.3,2.88325]
[1721099021360,0.03233366,3468.5,3468.3,2.88325]
[1721099022147,0.03233366,3468.5,3468.4,5.76634]
[1721099024448,7.32,3468.9,3468.8,2.88284]
[1721099026698,7.32,3468.9,3468.8,5.76568]
[1721099027647,2.3157,3469.3,3468.8,2.88284]
[1721099027941,2.3157,3469.3,3468.5,2.3422]
[1721099028178,2.3157,3469.3,3469.1,2.88253]
[1721099028598,2.3157,3469.3,3469.2,2.8825]
[1721099029783,7.32,3469.5,3469.2,2.8825]
[1721099031684,7.32,3469.5,3469.0,2.88266]
[1721099032264,0.89822942,3469.4,3469.0,2.88266]
[1721099032580,7.32,3469.5,3468.5,2.3422]
[1721099032782,7.32,3469.5,3469.4,2.88234]
[1721099033540,7.08822942,3469.6,3469.4,2.88234]
[1721099034098,7.38763922,3469.6,3469.4,2.88234]
[1721099034245,0.90356197,3469.5,3469.4,2.88234]
[1721099034894,2.4131314,3469.5,3469.0,2.88264]
[1721099035182,0.90354856,3469.3,3469.0,2.88264]
[1721099035681,0.90354856,3469.3,3469.1,2.88257]
[1721099036385,0.90354856,3469.2,3469.1,2.88257]
[1721099037183,1.19763922,3469.3,3469.1,2.88257]
[1721099037547,1.19763922,3469.3,3468.9,2.88271]
[1721099037748,0.90531129,3469.1,3468.9,2.88271]
[1721099038560,0.90531129,3469.0,3468.9,2.88271]
[1721099038998,0.90531129,3469.0,3468.7,2.88292]
[1721099039307,0.90531129,3469.0,3468.8,2.88279]
[1721099039489,0.90531129,3468.9,3468.8,2.88279]
[1721099040607,1.19763922,3469.1,3468.8,2.88279]
[1721099040608,0.90531129,3469.0,3468.8,2.88279]
[1721099040906,0.90531129,3468.9,3468.8,2.88279]
[1721099041516,1.19763922,3468.9,3468.8,2.88279]
[1721099041819,0.90526754,3469.0,3468.8,2.88279]
[1721099041978,1.19763922,3469.1,3469.0,2.88267]
[1721099043362,1.50841243,3469.2,3469.0,2.88267]
[1721099043564,1.50841243,3469.2,3468.8,2.88279]
[1721099043565,1.50841243,3469.1,3468.8,2.88279]
[1721099043769,1.20664123,3469.0,3468.8,2.88279]
[1721099044069,1.20664123,3468.9,3468.8,2.88279]
[1721099044388,1.20664123,3469.0,3468.8,2.88279]
[1721099044581,1.20664123,3468.9,3468.8,2.88279]
[1721099049426,0.90510416,3469.0,3468.9,2.88275]
[1721099049801,1.20664123,3469.1,3469.0,2.88265]
[1721099050118,1.20682668,3469.1,3469.0,2.88265]
[1721099050282,1.50849397,3469.2,3469.0,2.88265]
[1721099050487,0.27153207,3469.1,3468.8,2.88279]
[1721099050719,1.20701862,3469.0,3468.8,2.88279]
[1721099051096,1.20701862,3469.0,3468.6,2.883]
[1721099051290,1.20701862,3469.1,3469.0,2.88267]
[1721099051489,1.20716015,3469.1,3469.0,2.88267]
[1721099051715,1.50849397,3469.1,3469.0,2.88267]
[1721099052230,1.50849397,3469.1,3468.8,2.8828]
[1721099052422,1.2072126,3469.0,3468.9,2.88275]
[1721099052813,1.20726239,3469.0,3468.9,2.88275]
[1721099053012,1.20731898,3469.0,3468.9,2.88275]
[1721099053529,1.50919892,3469.1,3468.9,2.88275]
[1721099053745,1.94312268,3469.1,3468.9,2.88275]
[1721099054409,1.50919892,3469.1,3468.9,2.88275]
[1721099055790,1.50974802,3469.1,3469.0,2.88267]
[1721099056104,7.32,3469.5,3469.0,2.88267]
[1721099056105,1.50969454,3469.2,3469.0,2.88267]
[1721099056427,1.20784967,3469.1,3469.0,2.88267]
[1721099056632,1.50975706,3469.2,3469.0,2.88267]
[1721099056803,1.20787733,3469.1,3469.0,2.88267]
[1721099057132,1.50975706,3469.2,3469.0,2.88267]
[1721099057330,1.20783176,3469.1,3469.0,2.88267]
[1721099057496,1.50975706,3469.2,3469.0,2.88267]
[1721099057830,1.50975706,3469.1,3469.0,2.88267]
[1721099058029,1.50975706,3469.1,3468.6,2.883]
[1721099058340,7.32,3469.5,3468.8,2.88278]
[1721099058341,1.20811147,3468.9,3468.8,2.88278]
[1721099058689,1.51013934,3469.0,3468.7,2.88288]
[1721099058916,1.20832461,3468.8,3468.7,2.88288]
[1721099062254,1.20884237,3468.8,3468.7,2.88288]
[1721099062479,1.5104929,3468.9,3468.8,2.88284]
[1721099062626,1.5104929,3469.0,3468.8,2.88284]
[1721099062948,1.51107423,3468.9,3468.8,2.88284]
[1721099063111,1.51107423,3469.0,3468.8,2.88284]
[1721099063312,1.51125867,3468.9,3468.8,2.88284]
[1721099063563,1.20906028,3468.9,3468.8,2.88284]
[1721099063846,1.20874767,3468.9,3468.8,2.88284]
[1721099064348,1.20874767,3468.9,3468.8,3.171124]
[1721099064712,1.51125867,3469.0,3468.9,2.88275]
[1721099065841,1.51156608,3469.0,3468.9,5.7655]
[1721099066055,7.32,3469.5,3469.4,5.76468]
[1721099066360,8.22702152,3469.5,3469.4,6.341148]
[1721099066525,8.52975809,3469.5,3469.4,6.341148]
[1721099066714,7.32,3469.5,3469.4,6.341148]
[1721099068046,8.22676485,3469.5,3469.4,6.341148]
[1721099068224,7.32,3469.5,3469.4,6.341148]
[1721099068427,8.2265434,3469.5,3469.4,6.341148]
[1721099068849,7.32,3469.5,3469.4,6.341148]
[1721099069242,1.20975809,3469.6,3469.5,5.7645]
[1721099069428,7.32,3470.0,3469.6,5.76434]
[1721099069429,1.20975809,3469.7,3469.6,5.76434]
[1721099070566,0.90640611,3469.7,3469.6,5.76434]
[1721099070773,0.90645941,3469.8,3469.7,5.76418]
[1721099071427,0.90645941,3469.9,3469.8,5.76402]
[1721099071652,0.90645941,3469.9,3469.8,6.3344552]
[1721099071879,8.22645941,3470.0,3469.9,5.76384]
[1721099072433,7.32,3470.0,3469.9,5.76384]
[1721099072654,8.22616567,3470.0,3469.9,5.76384]
[1721099072872,7.32,3470.0,3469.9,5.76384]
[1721099073026,7.32,3470.0,3469.9,6.340308]
[1721099075172,8.22616567,3470.3,3470.2,5.76334]
[1721099075337,0.90616567,3470.4,3470.3,2.88159]
[1721099075674,1.2082209,3470.5,3470.2,2.88167]
[1721099075971,0.90501664,3470.3,3470.2,5.76334]
[1721099076377,0.90501664,3470.4,3470.3,2.88159]
[1721099076581,1.20670472,3470.5,3470.4,2.88151]
[1721099077081,7.32,3470.6,3470.5,2.88142]
[1721099077644,8.52593577,3470.6,3470.5,2.88142]
[1721099078266,7.32,3470.6,3470.5,2.88142]
[1721099079160,7.32,3470.6,3470.5,5.76284]
[1721099080787,8.22411621,3470.6,3470.5,2.88142]
[1721099080986,7.32,3470.6,3470.5,2.88142]
[1721099081289,0.90411621,3470.7,3470.5,2.88142]
[1721099082006,2.453,3470.6,3469.3,2.4698]
[1721099082299,0.90254297,3470.5,3470.1,5.76338]
[1721099082468,0.90254297,3470.4,3470.1,2.88169]
[1721099082842,0.90243736,3470.4,3470.1,2.88169]
[1721099083665,1.019,3470.3,3470.1,2.88169]
[1721099084394,1.92143736,3470.3,3470.1,2.88169]
[1721099084565,0.90243736,3470.2,3469.9,2.88191]
[1721099085004,0.90243736,3470.2,3469.7,2.88207]
[1721099085005,0.90243736,3470.2,3470.0,2.88182]
[1721099085187,1.92143736,3470.3,3470.0,2.88182]
[1721099085701,3.397,3470.1,3469.7,2.88207]
[1721099086022,2.378,3469.7,3468.9,2.88275]
[1721099086301,1.019,3469.3,3468.9,2.88275]
[1721099086664,1.92124209,3469.3,3468.9,2.88275]
[1721099086866,1.92124209,3469.3,3469.0,2.88265]
[1721099087212,0.90224209,3469.4,3469.1,2.88254]
[1721099087906,0.90224209,3469.3,3468.8,2.88282]
[1721099088295,0.90224209,3469.4,3468.8,2.88282]
[1721099088600,0.90224209,3469.2,3468.6,2.88298]
[1721099088819,2.4787,3469.1,3468.6,2.88298]
[1721099089111,0.90224209,3469.0,3468.6,2.88298]
[1721099089679,0.90224209,3469.0,3468.4,2.88314]
[1721099090032,0.90224209,3468.9,3468.4,2.88314]
[1721099090310,0.90224209,3468.8,3468.4,2.88314]
[1721099091322,3.34954209,3468.7,3468.0,2.88349]
[1721099091703,0.90224209,3468.6,3468.0,2.88349]
[1721099092219,1.6457774,3468.6,3468.0,2.88349]
[1721099092604,0.74353531,3468.6,3468.0,2.88349]
[1721099092808,0.74353531,3468.6,3468.1,2.88339]
[1721099093119,3.34954209,3468.7,3468.1,2.88339]
[1721099095385,3.34918568,3468.7,3468.2,2.88331]
[1721099095716,2.4473,3468.7,3468.2,2.88331]
[1721099097035,2.4473,3468.7,3468.4,2.88314]
[1721099097236,0.90182089,3468.9,3468.4,2.88312]
[1721099097396,1.8275282,3468.9,3468.4,2.88312]
[1721099097734,0.90182089,3468.9,3468.5,2.88305]
[1721099099434,3.34912089,3469.0,3468.5,2.88302]
[1721099099948,3.34912089,3469.0,3468.6,2.88299]
[1721099101046,3.34912089,3469.0,3468.7,2.8829]
[1721099101202,2.4473,3469.0,3468.7,2.8829]
[1721099101606,3.34912089,3469.0,3468.5,2.88304]
[1721099101834,5.0075733,3469.0,3468.5,2.88304]
[1721099102242,0.90182089,3468.9,3468.5,2.88304]
[1721099102743,5.0075733,3469.0,3468.5,2.88304]
[1721099103041,0.90182089,3468.9,3468.6,2.88299]
[1721099103231,3.34912089,3469.0,3468.6,2.88299]
[1721099104924,3.34912089,3469.0,3468.4,2.88315]
[1721099105127,4.85727576,3469.0,3468.4,2.88315]
[1721099105749,0.90182089,3468.9,3468.4,2.88315]
[1721099106045,3.95545487,3469.0,3468.4,2.88315]
[1721099106046,4.85727576,3469.0,3468.4,2.88315]
[1721099106422,4.85727576,3469.0,3468.5,2.88306]
[1721099106633,0.90182089,3468.9,3468.5,2.88306]
[1721099107017,4.85727576,3469.0,3468.5,2.88306]
[1721099107242,1.62622136,3468.9,3468.5,2.88306]
[1721099107624,2.52804225,3468.9,3468.5,2.88306]
[1721099108458,1.62622136,3468.9,3468.5,2.88306]
[1721099108623,3.95545487,3469.0,3468.5,2.88306]
[1721099108957,4.85727576,3469.0,3468.5,2.88306]
[1721099109137,3.95545487,3469.0,3468.5,2.88306]
[1721099110246,2.4473,3469.0,3468.6,2.88293]
[1721099110472,7.32,3469.1,3468.6,2.88293]
[1721099111363,8.22182089,3469.1,3468.6,2.88293]
[1721099111562,1.019,3469.0,3468.6,2.88293]
[1721099112251,1.019,3468.8,3468.3,2.88318]
[1721099112590,1.019,3468.6,3468.1,2.88338]